fUSD/lending_fUSD_20240404
["ID","MTS","AMOUNT","RATE_DAILY","PERIOD"]
[321463122,1712202641366,-27100.9070143,0.0005,4]
[321463123,1712202641376,-500.0,0.0005,120]
[321463124,1712202641385,-500.0,0.0005,120]
[321463125,1712202641394,-500.0,0.0005,120]
[321463126,1712202641404,-500.0,0.0005,120]
[321463127,1712202641413,-500.0,0.0005,120]
[321463128,1712202641423,-500.0,0.0005,120]
[321463129,1712202641432,-500.0,0.0005,120]
[321463130,1712202641441,-501.04,0.0005,120]
[321463131,1712202641451,-300.0,0.0005,60]
[321463132,1712202641461,-300.0,0.0005,30]
[321463133,1712202641470,-300.0,0.0005,30]
[321463134,1712202641480,-300.0,0.0005,60]
[321463135,1712202641489,-500.0,0.0005,60]
[321463136,1712202641501,-151.0,0.0005,120]
[321463137,1712202641510,-4373.81716,0.0005,2]
[321463138,1712202641524,-1419.33,0.00050136,64]
[321463139,1712202641535,-2065.12604021,0.0005017,26]
[321463140,1712202641544,-1909.0,0.000502,14]
[321463141,1712202641554,-1011.28,0.0005032,2]
[321463142,1712202641565,-150.0,0.00050446,2]
[321463143,1712202641574,-151.0,0.00050466,120]
[321463144,1712202641584,-1029.0,0.00050935,30]
[321463145,1712202641593,-1419.33,0.00050958,68]
[321463146,1712202641603,-150.0,0.00050999,60]
[321463147,1712202641613,-1009.38615581,0.00051,5]
[321463148,1712202641622,-6198.0,0.00051056,10]
[321463149,1712202641631,-3000.0,0.000512,2]
[321463150,1712202641641,-151.0,0.00051288,120]
[321463151,1712202641650,-2065.12604021,0.00051335,28]
[321463152,1712202641659,-561.62,0.00051726,120]
[321463153,1712202641669,-1419.33,0.0005178,72]
[321463154,1712202641679,-2896.3,0.00051788,117]
[321463155,1712202641689,-152.21,0.000518,7]
[321463156,1712202641698,-152.21,0.000518,7]
[321463157,1712202641708,-152.21,0.000518,7]
[321463158,1712202641717,-152.21,0.000518,7]
[321463159,1712202641727,-152.21,0.000518,7]
[321463160,1712202641737,-152.21,0.000518,7]
[321463161,1712202641746,-152.21,0.000518,7]
[321463162,1712202641756,-152.21,0.000518,7]
[321463163,1712202641765,-1417.98,0.000518,7]
[321463164,1712202641775,-1417.98,0.000518,7]
[321463165,1712202641784,-1417.98,0.000518,7]
[321463166,1712202641793,-1417.98,0.000518,7]
[321463167,1712202641803,-1417.98,0.000518,7]
[321463168,1712202641812,-1417.98,0.000518,7]
[321463169,1712202641823,-1417.98,0.000518,7]
[321463170,1712202641833,-1417.98,0.000518,7]
[321463171,1712202641842,-1417.98,0.000518,7]
[321463172,1712202641852,-1417.98,0.000518,7]
[321463173,1712202641861,-1417.98,0.000518,7]
[321463174,1712202641871,-1417.98,0.000518,7]
[321463175,1712202641881,-1417.98,0.000518,7]
[321463176,1712202641890,-1417.98,0.000518,7]
[321463177,1712202641899,-1417.98,0.000518,7]
[321463178,1712202641908,-1417.98,0.000518,7]
[321463179,1712202641918,-1417.98,0.000518,7]
[321463180,1712202641928,-1417.98,0.000518,7]
[321463181,1712202641938,-1417.98,0.000518,7]
[321463182,1712202641947,-1417.98,0.000518,7]
[321463183,1712202641957,-2063.60608052,0.00051848,2]
[321463184,1712202641966,-1011.28,0.0005194,2]
[321463185,1712202641976,-458.73,0.00051949,2]
[321463186,1712202641985,-7500.0,0.00051954,3]
[321463187,1712202641995,-1236.41911846,0.00051954,30]
[321463188,1712202642007,-3705.76200788,0.00052,120]
[321463189,1712202642016,-300.0,0.00052,60]
[321463190,1712202642025,-500.0,0.00052,2]
[321463191,1712202642034,-256.95562393,0.00052054,31]
[321463192,1712202642043,-500.0,0.00052054,120]
[321463193,1712202642052,-812.67,0.00052054,120]
[321463194,1712202642062,-511.2360359,0.00052054,120]
[321463195,1712202642071,-500.0,0.00052054,120]
[321463196,1712202642081,-511.67428552,0.00052054,120]
[321463197,1712202642090,-500.0,0.00052054,120]
[321463198,1712202642099,-500.0,0.00052054,120]
[321463199,1712202642109,-600.68,0.00052054,120]
[321463200,1712202642118,-500.0,0.00052054,120]
[321463201,1712202642127,-500.0,0.00052054,120]
[321463202,1712202642137,-507.94871923,0.00052054,120]
[321463203,1712202642147,-500.0,0.00052054,120]
[321463204,1712202642156,-500.0,0.00052054,120]
[321463205,1712202642166,-500.0,0.00052054,120]
[321463206,1712202642175,-697.45,0.00052054,120]
[321463207,1712202642185,-500.0,0.00052054,120]
[321463208,1712202642194,-500.0,0.00052054,120]
[321463209,1712202642203,-500.0,0.00052054,120]
[321463210,1712202642212,-500.0,0.00052054,120]
[321463211,1712202642222,-500.0,0.00052054,120]
[321463212,1712202642231,-500.0,0.00052054,120]
[321463213,1712202642240,-500.0,0.00052054,120]
[321463214,1712202642251,-527.50033459,0.00052054,120]
[321463215,1712202642260,-641.88498848,0.00052054,120]
[321463216,1712202642269,-500.0,0.00052054,120]
[321463217,1712202642278,-571.33350576,0.00052054,120]
[321463218,1712202642287,-500.0,0.00052054,120]
[321463219,1712202642297,-500.0,0.00052054,120]
[321463220,1712202642306,-500.0,0.00052054,120]
[321463221,1712202642316,-500.0,0.00052054,120]
[321463222,1712202642325,-500.0,0.00052054,120]
[321463223,1712202642335,-500.0,0.00052054,120]
[321463224,1712202642344,-500.0,0.00052054,120]
[321463225,1712202642354,-500.0,0.00052054,120]
[321463226,1712202642364,-511.28555091,0.00052054,120]
[321463227,1712202642374,-500.0,0.00052054,120]
[321463228,1712202642383,-500.0,0.00052054,120]
[321463229,1712202642392,-508.46067826,0.00052054,120]
[321463230,1712202642402,-500.0,0.00052054,120]
[321463231,1712202642411,-500.0,0.00052054,120]
[321463232,1712202642421,-512.72498497,0.00052054,120]
[321463233,1712202642431,-500.0,0.00052054,120]
[321463234,1712202642441,-500.0,0.00052054,120]
[321463235,1712202642451,-500.0,0.00052054,120]
[321463236,1712202642462,-622.39,0.00052054,120]
[321463237,1712202642471,-423.17876906,0.00052054,120]
[321463238,1712202642481,-509.43447578,0.00052054,120]
[321463239,1712202642490,-500.0,0.00052054,120]
[321463240,1712202642501,-500.0,0.00052054,120]
[321463241,1712202642509,-500.0,0.00052054,120]
[321463242,1712202642521,-500.0,0.00052054,120]
[321463243,1712202642531,-666.0,0.00052054,2]
[321463244,1712202642541,-1113.07,0.00052054,120]
[321463245,1712202642552,-156.99443614,0.00052054,120]
[321463246,1712202642562,-542.34,0.00052054,120]
[321463247,1712202642572,-581.42542818,0.00052054,120]
[321463248,1712202642581,-500.0,0.00052054,120]
[321463249,1712202642591,-500.0,0.00052054,120]
[321463250,1712202642601,-542.66536952,0.00052054,120]
[321463251,1712202642613,-500.0,0.00052054,120]
[321463252,1712202642623,-503.01,0.00052054,120]
[321463253,1712202642632,-500.0,0.00052054,120]
[321463254,1712202642642,-661.13,0.00052054,120]
[321463255,1712202642651,-500.0,0.00052054,120]
[321463256,1712202642661,-500.0,0.00052054,120]
[321463257,1712202642670,-500.0,0.00052054,120]
[321463258,1712202642679,-644.01,0.00052054,120]
[321463259,1712202642689,-321.33004604,0.00052054,120]
[321463260,1712202642698,-539.82,0.00052054,120]
[321463261,1712202642707,-500.0,0.00052054,120]
[321463262,1712202642717,-500.0,0.00052054,120]
[321463263,1712202642727,-500.0,0.00052054,120]
[321463264,1712202642736,-500.0,0.00052054,120]
[321463265,1712202642746,-1377.77,0.00052054,2]
[321463266,1712202642757,-664.5,0.00052054,120]
[321463267,1712202642766,-643.09,0.00052054,120]
[321463268,1712202642776,-500.0,0.00052054,120]
[321463269,1712202642785,-246.47732354,0.00052054,120]
[321463270,1712202642794,-500.0,0.00052054,120]
[321463271,1712202642804,-500.0,0.00052054,120]
[321463272,1712202642813,-726.52,0.00052054,120]
[321463273,1712202642822,-603.09,0.00052054,120]
[321463274,1712202642832,-534.67199615,0.00052054,120]
[321463275,1712202642841,-500.0,0.00052054,120]
[321463276,1712202642851,-557.32733646,0.00052054,120]
[321463277,1712202642860,-607.3,0.00052054,120]
[321463278,1712202642870,-500.0,0.00052054,120]
[321463279,1712202642879,-577.50414196,0.00052054,120]
[321463280,1712202642890,-747.68,0.00052054,120]
[321463281,1712202642899,-557.19,0.00052054,120]
[321463282,1712202642909,-500.0,0.00052054,120]
[321463283,1712202642918,-500.0,0.00052054,120]
[321463284,1712202642996,-500.0,0.00052054,120]
[321463285,1712202643007,-500.0,0.00052054,120]
[321463286,1712202643016,-500.0,0.00052054,120]
[321463287,1712202643025,-500.0,0.00052054,120]
[321463288,1712202643034,-500.0,0.00052054,120]
[321463289,1712202643043,-500.0,0.00052054,120]
[321463290,1712202643053,-500.0,0.00052054,120]
[321463291,1712202643062,-500.0,0.00052054,120]
[321463292,1712202643071,-500.0,0.00052054,120]
[321463293,1712202643080,-709.35,0.00052054,120]
[321463294,1712202643089,-500.0,0.00052054,120]
[321463295,1712202643098,-500.0,0.00052054,120]
[321463296,1712202643108,-500.0,0.00052054,120]
[321463297,1712202643117,-500.0,0.00052054,120]
[321463298,1712202643127,-500.0,0.00052054,120]
[321463299,1712202643136,-500.0,0.00052054,2]
[321463300,1712202643146,-500.0,0.00052054,120]
[321463301,1712202643157,-567.47,0.00052054,120]
[321463302,1712202643166,-812.49,0.00052054,120]
[321463303,1712202643175,-500.0,0.00052054,120]
[321463304,1712202643185,-1601.84,0.00052054,120]
[321463305,1712202643195,-563.0,0.00052054,120]
[321463306,1712202643203,-855.27,0.00052054,120]
[321463307,1712202643214,-500.0,0.00052054,120]
[321463308,1712202643224,-1214.2,0.00052054,120]
[321463309,1712202643234,-500.0,0.00052054,120]
[321463310,1712202643243,-500.0,0.00052054,2]
[321463311,1712202643253,-2046.08,0.00052054,120]
[321463312,1712202643263,-500.0,0.00052054,120]
[321463313,1712202643272,-500.0,0.00052054,120]
[321463314,1712202643282,-562.2,0.00052054,120]
[321463316,1712202643291,-1768.81,0.00052054,120]
[321463318,1712202643300,-500.0,0.00052054,120]
[321463320,1712202643309,-500.0,0.00052054,2]
[321463322,1712202643318,-863.31,0.00052054,120]
[321463324,1712202643327,-500.0,0.00052054,120]
[321463325,1712202643336,-1123.37,0.00052054,120]
[321463327,1712202643345,-500.0,0.00052054,2]
[321463329,1712202643354,-500.0,0.00052054,120]
[321463330,1712202643363,-264.23841222,0.00052054,120]
[321463331,1712202643373,-551.92,0.00052054,120]
[321463332,1712202643382,-500.0,0.00052054,120]
[321463333,1712202643391,-500.0,0.00052054,120]
[321463334,1712202643400,-1053.33,0.00052054,120]
[321463335,1712202643409,-865.76,0.00052054,120]
[321463336,1712202643418,-816.55,0.00052054,120]
[321463337,1712202643427,-500.0,0.00052054,120]
[321463338,1712202643437,-500.0,0.00052054,120]
[321463339,1712202643446,-500.0,0.00052054,120]
[321463340,1712202643456,-1126.96,0.00052054,120]
[321463341,1712202643464,-817.95,0.00052054,120]
[321463342,1712202643474,-805.76,0.00052054,120]
[321463343,1712202643483,-500.0,0.00052054,120]
[321463344,1712202643492,-500.0,0.00052054,120]
[321463345,1712202643503,-1009.37,0.00052054,120]
[321463346,1712202643512,-741.8,0.00052054,120]
[321463347,1712202643521,-763.39,0.00052054,120]
[321463348,1712202643534,-500.0,0.00052054,120]
[321463349,1712202643544,-982.65,0.00052054,120]
[321463350,1712202643553,-500.0,0.00052054,120]
[321463351,1712202643562,-500.0,0.00052054,30]
[321463352,1712202643573,-1354.6,0.00052054,120]
[321463353,1712202643582,-1034.2,0.00052054,120]
[321463354,1712202643592,-2443.84,0.00052054,120]
[321463355,1712202643601,-898.25,0.00052054,120]
[321463356,1712202643610,-954.37,0.00052054,120]
[321463357,1712202643619,-596.05,0.00052054,120]
[321463358,1712202643628,-709.3,0.00052054,120]
[321463359,1712202643638,-500.0,0.00052054,120]
[321463360,1712202643646,-528.86539999,0.00052054,120]
[321463361,1712202643656,-932.6,0.00052054,120]
[321463362,1712202643665,-500.0,0.00052054,120]
[321463363,1712202643675,-801.11,0.00052054,120]
[321463364,1712202643684,-500.0,0.00052054,120]
[321463365,1712202643693,-386.6081492,0.00052054,120]
[321463366,1712202643703,-887.5,0.00052054,120]
[321463367,1712202643712,-984.71,0.00052054,120]
[321463368,1712202643721,-500.0,0.00052054,120]
[321463369,1712202643730,-500.0,0.00052054,120]
[321463370,1712202643740,-500.0,0.00052054,120]
[321463371,1712202643749,-956.86,0.00052054,120]
[321463372,1712202643759,-500.0,0.00052054,120]
[321463373,1712202643769,-278.02290487,0.00052054,120]
[321463374,1712202643778,-582.3,0.00052054,120]
[321463375,1712202643787,-508.56915892,0.00052054,120]
[321463376,1712202643796,-843.07,0.00052054,120]
[321463377,1712202643806,-500.0,0.00052054,120]
[321463378,1712202643815,-1173.63,0.00052054,120]
[321463379,1712202643825,-688.41,0.00052054,80]
[321463380,1712202643834,-1001.9,0.00052054,120]
[321463381,1712202643843,-766.58,0.00052054,120]
[321463382,1712202643852,-985.53,0.00052054,120]
[321463383,1712202643861,-1126.54,0.00052054,120]
[321463384,1712202643871,-249.71550669,0.00052054,120]
[321463385,1712202643880,-500.0,0.00052054,120]
[321463386,1712202643889,-500.0,0.00052054,120]
[321463387,1712202643897,-500.0,0.00052054,120]
[321463388,1712202643907,-500.0,0.00052054,120]
[321463389,1712202643916,-1422.59,0.00052054,120]
[321463390,1712202643926,-500.0,0.00052054,120]
[321463391,1712202643935,-500.0,0.00052054,120]
[321463392,1712202643944,-747.6,0.00052054,120]
[321463393,1712202643953,-502.19415273,0.00052054,120]
[321463394,1712202643962,-535.77,0.00052054,120]
[321463395,1712202643972,-1491.7,0.00052054,120]
[321463396,1712202643980,-1043.99,0.00052054,120]
[321463398,1712202643989,-500.0,0.00052054,120]
[321463400,1712202643999,-500.0,0.00052054,120]
[321463401,1712202644008,-535.29956688,0.00052054,60]
[321463402,1712202644018,-500.0,0.00052054,120]
[321463403,1712202644027,-516.54,0.00052054,120]
[321463404,1712202644036,-682.21,0.00052054,120]
[321463405,1712202644045,-1659.93,0.00052054,120]
[321463406,1712202644054,-1039.79,0.00052054,120]
[321463407,1712202644064,-500.0,0.00052054,120]
[321463408,1712202644073,-1372.54,0.00052054,120]
[321463409,1712202644082,-1097.13,0.00052054,120]
[321463410,1712202644091,-1110.45,0.00052054,120]
[321463411,1712202644100,-941.47,0.00052054,120]
[321463412,1712202644109,-957.33,0.00052054,120]
[321463413,1712202644118,-584.40794207,0.00052054,120]
[321463414,1712202644127,-377.34725617,0.00052054,120]
[321463415,1712202644136,-500.0,0.00052054,120]
[321463416,1712202644146,-500.0,0.00052054,120]
[321463417,1712202644155,-1288.94,0.00052054,120]
[321463418,1712202644164,-609.28,0.00052054,120]
[321463419,1712202644173,-500.0,0.00052054,120]
[321463420,1712202644183,-500.0,0.00052054,120]
[321463421,1712202644192,-301.16500429,0.00052054,120]
[321463422,1712202644201,-1569.24,0.00052054,120]
[321463423,1712202644210,-500.0,0.00052054,120]
[321463424,1712202644220,-500.0,0.00052054,120]
[321463425,1712202644229,-617.45,0.00052054,120]
[321463426,1712202644238,-1312.98,0.00052054,30]
[321463427,1712202644247,-819.94,0.00052054,120]
[321463428,1712202644257,-500.0,0.00052054,120]
[321463429,1712202644266,-648.73,0.00052054,120]
[321463430,1712202644276,-500.0,0.00052054,120]
[321463431,1712202644285,-668.04,0.00052054,120]
[321463432,1712202644293,-500.0,0.00052054,120]
[321463433,1712202644303,-500.0,0.00052054,120]
[321463434,1712202644312,-907.36,0.00052054,120]
[321463435,1712202644321,-500.0,0.00052054,2]
[321463436,1712202644330,-574.6,0.00052054,120]
[321463437,1712202644338,-500.0,0.00052054,120]
[321463438,1712202644347,-781.06,0.00052054,120]
[321463439,1712202644357,-684.77906081,0.00052054,2]
[321463440,1712202644365,-500.0,0.00052054,120]
[321463441,1712202644375,-1107.34,0.00052054,120]
[321463442,1712202644384,-672.9,0.00052054,120]
[321463443,1712202644393,-678.15,0.00052054,120]
[321463444,1712202644402,-500.0,0.00052054,120]
[321463445,1712202644411,-500.0,0.00052054,120]
[321463446,1712202644420,-1234.61,0.00052054,120]
[321463447,1712202644429,-1164.65,0.00052054,120]
[321463448,1712202644438,-500.0,0.00052054,120]
[321463449,1712202644447,-500.0,0.00052054,120]
[321463450,1712202644457,-630.36,0.00052054,120]
[321463451,1712202644466,-500.0,0.00052054,120]
[321463452,1712202644475,-520.93835918,0.00052054,120]
[321463453,1712202644484,-1405.38,0.00052054,120]
[321463454,1712202644493,-1026.85,0.00052054,30]
[321463455,1712202644504,-500.0,0.00052054,120]
[321463456,1712202644514,-356.50689433,0.00052054,120]
[321463457,1712202644526,-1255.01,0.00052054,120]
[321463458,1712202644535,-500.0,0.00052054,120]
[321463459,1712202644545,-1084.29098945,0.00052054,120]
[321463460,1712202644554,-729.25,0.00052054,120]
[321463461,1712202644565,-1146.62,0.00052054,120]
[321463462,1712202644575,-1784.92,0.00052054,120]
[321463463,1712202644584,-1093.38,0.00052054,120]
[321463464,1712202644594,-1082.25,0.00052054,120]
[321463465,1712202644604,-500.0,0.00052054,120]
[321463466,1712202644614,-677.25,0.00052054,120]
[321463467,1712202644624,-523.33,0.00052054,120]
[321463468,1712202644633,-948.82,0.00052054,120]
[321463469,1712202644643,-626.31,0.00052054,120]
[321463470,1712202644652,-1411.5,0.00052054,120]
[321463471,1712202644662,-513.80624987,0.00052054,120]
[321463472,1712202644672,-1000.06,0.00052054,120]
[321463473,1712202644682,-690.38,0.00052054,120]
[321463474,1712202644691,-774.31,0.00052054,120]
[321463475,1712202644701,-500.0,0.00052054,120]
[321463476,1712202644711,-990.99,0.00052054,120]
[321463477,1712202644721,-1081.11,0.00052054,120]
[321463478,1712202644730,-997.79,0.00052054,120]
[321463479,1712202644739,-2000.0,0.00052054,30]
[321463480,1712202644749,-1072.7,0.00052054,120]
[321463481,1712202644761,-500.0,0.00052054,120]
[321463482,1712202644770,-573.8,0.00052054,120]
[321463483,1712202644780,-506.56,0.00052054,120]
[321463484,1712202644789,-500.0,0.00052054,120]
[321463485,1712202644799,-500.0,0.00052054,120]
[321463486,1712202644808,-514.21,0.00052054,120]
[321463487,1712202644818,-500.0,0.00052054,120]
[321463488,1712202644828,-996.26,0.00052054,120]
[321463489,1712202644837,-511.99254107,0.00052054,120]
[321463490,1712202644846,-529.95,0.00052054,120]
[321463491,1712202644855,-527.47264778,0.00052054,120]
[321463492,1712202644864,-500.0,0.00052054,120]
[321463493,1712202644873,-1033.48,0.00052054,120]
[321463494,1712202644882,-500.0,0.00052054,120]
[321463495,1712202644891,-951.64,0.00052054,120]
[321463496,1712202644900,-500.0,0.00052054,120]
[321463497,1712202644910,-500.0,0.00052054,120]
[321463498,1712202644919,-500.0,0.00052054,120]
[321463499,1712202644928,-1135.48,0.00052054,60]
[321463500,1712202644938,-531.67275057,0.00052054,120]
[321463501,1712202644948,-500.0,0.00052054,120]
[321463502,1712202644957,-1071.83,0.00052054,120]
[321463503,1712202644967,-539.44,0.00052054,120]
[321463504,1712202644976,-500.0,0.00052054,120]
[321463505,1712202644985,-500.0,0.00052054,120]
[321463506,1712202644994,-618.25,0.00052054,120]
[321463507,1712202645003,-500.0,0.00052054,120]
[321463508,1712202645012,-682.63,0.00052054,120]
[321463509,1712202645021,-500.0,0.00052054,120]
[321463510,1712202645030,-1369.85,0.00052054,120]
[321463511,1712202645039,-500.0,0.00052054,120]
[321463512,1712202645048,-500.0,0.00052054,120]
[321463513,1712202645057,-500.0,0.00052054,120]
[321463514,1712202645066,-1116.9,0.00052054,120]
[321463515,1712202645075,-500.0,0.00052054,120]
[321463516,1712202645085,-931.67,0.00052054,120]
[321463517,1712202645094,-500.0,0.00052054,120]
[321463518,1712202645103,-500.0,0.00052054,120]
[321463519,1712202645113,-500.0,0.00052054,120]
[321463520,1712202645123,-842.29,0.00052054,120]
[321463521,1712202645133,-558.96,0.00052054,120]
[321463522,1712202645143,-582.66,0.00052054,120]
[321463523,1712202645152,-842.15,0.00052054,120]
[321463524,1712202645161,-857.86,0.00052054,120]
[321463525,1712202645171,-500.0,0.00052054,120]
[321463526,1712202645181,-690.28,0.00052054,120]
[321463527,1712202645190,-500.0,0.00052054,120]
[321463528,1712202645199,-500.0,0.00052054,120]
[321463529,1712202645209,-1368.21,0.00052054,120]
[321463530,1712202645218,-500.0,0.00052054,120]
[321463531,1712202645227,-587.72,0.00052054,120]
[321463532,1712202645236,-500.0,0.00052054,120]
[321463533,1712202645245,-652.25,0.00052054,120]
[321463534,1712202645259,-515.93489993,0.00052054,120]
[321463535,1712202645268,-686.03,0.00052054,120]
[321463536,1712202645279,-500.0,0.00052054,120]
[321463537,1712202645292,-1078.27,0.00052054,120]
[321463538,1712202645302,-980.73,0.00052054,120]
[321463539,1712202645311,-1427.86,0.00052054,120]
[321463540,1712202645320,-765.53,0.00052054,120]
[321463541,1712202645329,-500.0,0.00052054,120]
[321463542,1712202645339,-500.0,0.00052054,120]
[321463543,1712202645348,-500.0,0.00052054,120]
[321463544,1712202645358,-500.0,0.00052054,120]
[321463545,1712202645368,-500.0,0.00052054,120]
[321463546,1712202645378,-522.6,0.00052054,120]
[321463547,1712202645388,-500.0,0.00052054,120]
[321463548,1712202645397,-554.15,0.00052054,120]
[321463549,1712202645407,-500.0,0.00052054,120]
[321463550,1712202645417,-1592.84,0.00052054,120]
[321463551,1712202645427,-1533.02,0.00052054,120]
[321463552,1712202645437,-500.08725764,0.00052054,120]
[321463553,1712202645447,-367.93818542,0.00052054,120]
[321463554,1712202645457,-500.0,0.00052054,120]
[321463555,1712202645466,-500.0,0.00052054,120]
[321463556,1712202645476,-1187.59,0.00052054,120]
[321463557,1712202645486,-500.0,0.00052054,120]
[321463558,1712202645495,-500.0,0.00052054,120]
[321463559,1712202645505,-500.0,0.00052054,120]
[321463560,1712202645515,-500.0,0.00052054,120]
[321463561,1712202645526,-507.44248619,0.00052054,120]
[321463562,1712202645536,-772.64,0.00052054,120]
[321463563,1712202645546,-500.0,0.00052054,120]
[321463564,1712202645555,-500.0,0.00052054,120]
[321463565,1712202645564,-500.0,0.00052054,120]
[321463566,1712202645574,-500.0,0.00052054,120]
[321463567,1712202645584,-500.0,0.00052054,120]
[321463568,1712202645593,-540.3550903,0.00052054,120]
[321463569,1712202645602,-500.0,0.00052054,120]
[321463570,1712202645611,-500.0,0.00052054,120]
[321463571,1712202645621,-173.5513496,0.00052054,120]
[321463572,1712202645634,-527.59471751,0.00052054,120]
[321463573,1712202645644,-1062.95,0.00052054,120]
[321463574,1712202645653,-509.42092049,0.00052054,120]
[321463575,1712202645663,-1455.39,0.00052054,120]
[321463576,1712202645672,-500.0,0.00052054,120]
[321463577,1712202645681,-500.0,0.00052054,120]
[321463578,1712202645690,-509.44,0.00052054,120]
[321463579,1712202645700,-517.2757311,0.00052054,120]
[321463580,1712202645709,-598.72,0.00052054,120]
[321463581,1712202645719,-500.0,0.00052054,120]
[321463582,1712202645728,-565.31,0.00052054,120]
[321463583,1712202645737,-838.94,0.00052054,120]
[321463584,1712202645746,-546.47,0.00052054,120]
[321463585,1712202645757,-641.34,0.00052054,120]
[321463586,1712202645766,-1000.0,0.00052054,30]
[321463587,1712202645775,-504.22821692,0.00052054,120]
[321463588,1712202645784,-518.08011589,0.00052054,120]
[321463589,1712202645794,-500.0,0.00052054,120]
[321463590,1712202645803,-817.99,0.00052054,120]
[321463591,1712202645813,-500.0,0.00052054,120]
[321463592,1712202645822,-206.9895668,0.00052054,120]
[321463593,1712202645831,-500.0,0.00052054,120]
[321463594,1712202645840,-1595.09,0.00052054,120]
[321463595,1712202645850,-2332.8,0.00052054,120]
[321463596,1712202645859,-500.0,0.00052054,120]
[321463597,1712202645868,-500.0,0.00052054,120]
[321463598,1712202645877,-608.9,0.00052054,120]
[321463599,1712202645887,-4460.64,0.00052054,120]
[321463600,1712202645896,-500.0,0.00052054,120]
[321463601,1712202645905,-514.62746152,0.00052054,120]
[321463602,1712202645914,-502.51,0.00052054,120]
[321463603,1712202645923,-4086.35,0.00052054,120]
[321463604,1712202645933,-1011.28,0.00052054,120]
[321463605,1712202645942,-530.05,0.00052054,120]
[321463606,1712202645951,-2000.0,0.00052054,30]
[321463607,1712202645960,-500.0,0.00052054,120]
[321463608,1712202645970,-500.0,0.00052054,120]
[321463609,1712202645979,-500.0,0.00052054,120]
[321463610,1712202645989,-2707.53,0.00052054,120]
[321463611,1712202645999,-5084.04,0.00052054,120]
[321463612,1712202646010,-500.0,0.00052054,120]
[321463613,1712202646020,-500.0,0.00052054,120]
[321463614,1712202646030,-500.0,0.00052054,120]
[321463615,1712202646039,-500.0,0.00052054,120]
[321463616,1712202646048,-500.0,0.00052054,120]
[321463617,1712202646058,-478.56,0.00052054,120]
[321463618,1712202646069,-7609.06,0.00052054,120]
[321463619,1712202646079,-986.87,0.00052054,120]
[321463620,1712202646089,-717.59,0.00052054,120]
[321463621,1712202646099,-534.98,0.00052054,120]
[321463622,1712202646109,-1543.41,0.00052054,7]
[321463623,1712202646119,-500.0,0.00052054,120]
[321463624,1712202646129,-500.0,0.00052054,120]
[321463625,1712202646138,-2885.13,0.00052054,120]
[321463626,1712202646148,-4543.22,0.00052054,120]
[321463627,1712202646158,-1443.35,0.00052054,120]
[321463628,1712202646168,-761.36,0.00052054,120]
[321463629,1712202646177,-500.0,0.00052054,120]
[321463631,1712202646186,-553.9,0.00052054,120]